bitfinex-derivatives/quotes_BTCF0:USTF0_20250405
["timestamp","ask_amount","ask_price","bid_price","bid_amount"]
[1743880124842,0.0849975,83051.0,83050.0,0.25872146]
[1743880127448,0.1298975,83051.0,83050.0,0.25872146]
[1743880129553,0.1298975,83051.0,83050.0,0.34792146]
[1743880131750,0.1298975,83051.0,83050.0,0.43224006]
[1743880132153,0.0849975,83051.0,83050.0,0.43224006]
[1743880132349,0.10802609,83065.0,83058.0,0.0843104]
[1743880132651,0.00098052,83059.0,83058.0,0.3150704]
[1743880132848,0.00018052,83059.0,83058.0,0.3603704]
[1743880133236,0.08448992,83059.0,83058.0,0.4022704]
[1743880133440,0.08532992,83059.0,83058.0,0.31796]
[1743880133843,0.08532992,83059.0,83058.0,0.4032704]
[1743880135045,0.08448992,83059.0,83058.0,0.4032704]
[1743880141547,0.08524992,83059.0,83058.0,0.4032704]
[1743880142446,0.08524992,83059.0,83058.0,0.45298457]
[1743880142648,0.08524992,83059.0,83058.0,0.36867417]
[1743880143149,0.08524992,83059.0,83058.0,0.45298457]
[1743880143753,0.00094052,83059.0,83058.0,0.45298457]
[1743880143953,0.00018052,83059.0,83058.0,0.45539252]
[1743880145661,1.2e-06,83061.0,83060.0,0.0843084]
[1743880145860,1.2e-06,83061.0,83060.0,0.4125084]
[1743880145861,0.0008012,83061.0,83060.0,0.4125084]
[1743880146159,0.0008012,83061.0,83060.0,0.46222257]
[1743880147361,0.0008012,83061.0,83060.0,0.46322257]
[1743880151163,0.06585484,83062.0,83061.0,0.0843074]
[1743880151463,0.001,83062.0,83061.0,0.37502157]
[1743880151653,0.001,83062.0,83061.0,0.45952157]
[1743880152554,0.001,83062.0,83061.0,0.46052157]
[1743880155459,0.02537,83063.0,83062.0,0.0843064]
[1743880155765,0.02537,83063.0,83062.0,0.39530057]
[1743880156064,0.02537,83063.0,83062.0,0.48440057]
[1743880157060,0.06807,83063.0,83062.0,0.48440057]
[1743880157467,0.0427,83063.0,83062.0,0.48440057]
[1743880158265,0.0427,83063.0,83062.0,0.48540057]
[1743880158469,0.0843032,83066.0,83065.0,0.0843033]
[1743880158764,0.1700032,83066.0,83065.0,0.39529747]
[1743880158965,0.1700023,83066.0,83065.0,0.39529747]
[1743880160957,0.1700023,83066.0,83065.0,0.39629747]
[1743880164454,0.1700023,83066.0,83065.0,0.39529747]
[1743880164655,0.1700023,83066.0,83065.0,0.39629747]
[1743880175164,0.1700023,83066.0,83065.0,0.31199417]
[1743880175466,0.1700023,83066.0,83065.0,0.39629747]
[1743880181578,0.27802839,83066.0,83065.0,0.39629747]
[1743880182979,0.27802839,83066.0,83065.0,0.43919747]
[1743880184578,0.27802839,83066.0,83065.0,0.31199417]
[1743880185382,0.1700023,83066.0,83065.0,0.31199417]
[1743880186175,0.3700023,83066.0,83065.0,0.31199417]
[1743880189482,0.3700023,83066.0,83065.0,0.26228]
[1743880189986,0.3700023,83066.0,83065.0,0.31212955]
[1743880190571,0.3700023,83066.0,83065.0,0.26228]
[1743880201486,0.2843023,83066.0,83065.0,0.26228]
[1743880201677,0.3660023,83066.0,83065.0,0.26228]
[1743880202184,0.3660023,83066.0,83065.0,0.31212587]
[1743880202582,0.1660023,83066.0,83065.0,0.31212587]
[1743880202787,0.1660023,83066.0,83065.0,0.26228]
[1743880203880,0.0843023,83066.0,83065.0,0.26228]
[1743880204084,0.0843023,83066.0,83065.0,0.3121105]
[1743880204287,0.0843023,83066.0,83065.0,0.4001105]
[1743880208691,0.0843023,83066.0,83065.0,0.4844138]
[1743880208897,0.0843023,83066.0,83065.0,0.4001105]
[1743880209083,0.1713023,83066.0,83065.0,0.4001105]
[1743880210396,0.1713023,83066.0,83065.0,0.3559105]
[1743880210578,0.1713023,83066.0,83065.0,0.3121105]
[1743880210777,0.1713023,83066.0,83065.0,0.26228]
[1743880211391,0.3713023,83066.0,83065.0,0.26228]
[1743880212690,0.7321023,83066.0,83065.0,0.26228]
[1743880214085,0.3713023,83066.0,83065.0,0.26228]
[1743880214287,0.7321023,83066.0,83065.0,0.26228]
[1743880216596,0.7321023,83066.0,83065.0,0.31211362]
[1743880223995,0.6451023,83066.0,83065.0,0.31211362]
[1743880224398,0.6451023,83066.0,83065.0,0.35301362]
[1743880224706,0.5286023,83066.0,83065.0,0.35301362]
[1743880225006,0.0843023,83066.0,83065.0,0.35301362]
[1743880225504,0.0843023,83066.0,83065.0,0.39621362]
[1743880226798,0.0843023,83066.0,83065.0,0.48051692]
[1743880233407,0.0843023,83066.0,83065.0,0.39621362]
[1743880234002,0.1647023,83066.0,83065.0,0.39621362]
[1743880234510,0.1647023,83066.0,83065.0,0.35301362]
[1743880234806,0.2067023,83066.0,83065.0,0.31211362]
[1743880235395,0.2067023,83066.0,83065.0,0.2013696]
[1743880235609,0.0843094,83059.0,83052.0,0.03]
[1743880235812,0.4451094,83059.0,83058.0,0.11332795]
[1743880236000,0.5302094,83059.0,83058.0,0.11332795]
[1743880236801,0.5302094,83059.0,83058.0,0.11432795]
[1743880237707,0.7302094,83059.0,83058.0,0.11432795]
[1743880238010,0.3694094,83059.0,83058.0,0.11432795]
[1743880238403,0.7302094,83059.0,83058.0,0.11432795]
[1743880239201,0.3694094,83059.0,83058.0,0.11432795]
[1743880239396,0.7302094,83059.0,83058.0,0.11432795]
[1743880240213,0.37036941,83059.0,83058.0,0.11432795]
[1743880240510,0.73116941,83059.0,83058.0,0.11432795]
[1743880240910,0.73116941,83059.0,83058.0,0.11340795]
[1743880249714,0.87540444,83059.0,83058.0,0.11340795]
[1743880252622,0.91660444,83059.0,83058.0,5e-08]
[1743880252925,0.0843155,83053.0,83052.0,0.02880005]
[1743880253128,0.0849555,83053.0,83052.0,0.13680005]
[1743880253426,0.1717555,83053.0,83052.0,0.13680005]
[1743880253627,0.1717555,83053.0,83052.0,0.05180005]
[1743880256835,0.1717555,83053.0,83052.0,0.10189234]
[1743880257033,0.1717555,83053.0,83052.0,0.10289234]
[1743880257540,0.1717555,83053.0,83052.0,0.05280005]
[1743880257837,0.1717555,83053.0,83052.0,0.05180005]
[1743880259842,0.27994426,83053.0,83052.0,0.05180005]
[1743880262442,0.27994426,83053.0,83052.0,0.10191623]
[1743880262645,0.2800717,83053.0,83052.0,0.05180005]
[1743880263445,0.4800717,83053.0,83052.0,0.05180005]
[1743880264346,0.37188294,83053.0,83052.0,0.05180005]
[1743880266636,0.37188294,83053.0,83052.0,5e-08]
[1743880266837,0.0843267,83042.0,83041.0,0.08834141]
[1743880267045,0.44615987,83042.0,83041.0,0.33926141]
[1743880267242,0.44615987,83042.0,83041.0,0.34018141]
[1743880267546,0.44615987,83042.0,83041.0,0.33926141]
[1743880267741,0.44615987,83042.0,83041.0,0.35798413]
[1743880268141,0.68995987,83042.0,83041.0,0.35798413]
[1743880268539,0.68995987,83042.0,83041.0,0.26964272]
[1743880269351,0.73235987,83042.0,83041.0,0.26964272]
[1743880270249,0.73235987,83042.0,83041.0,0.31354272]
[1743880270843,0.73235987,83042.0,83041.0,0.32267152]
[1743880272150,0.87663381,83042.0,83041.0,0.32267152]
[1743880275248,0.83423381,83042.0,83041.0,0.32267152]
[1743880275852,0.79043381,83042.0,83041.0,0.32267152]
[1743880276041,0.42963381,83042.0,83041.0,0.37277383]
[1743880276247,0.28535987,83042.0,83041.0,0.37277383]
[1743880276553,0.08535987,83042.0,83041.0,0.37277383]
[1743880277653,0.08535987,83042.0,83041.0,0.45710153]
[1743880277853,0.08535987,83042.0,83041.0,0.49740153]
[1743880279757,0.0843267,83042.0,83041.0,0.53956533]
[1743880279961,0.0843267,83042.0,83041.0,0.45523763]
[1743880284163,0.0625619,83043.0,83042.0,0.0843267]
[1743880284366,0.0625619,83043.0,83042.0,0.48006901]
[1743880284549,0.10813203,83048.0,83047.0,0.0843216]
[1743880284755,0.10813203,83048.0,83047.0,0.37558391]
[1743880285062,0.19245263,83048.0,83047.0,0.37558391]
[1743880285258,0.19245263,83048.0,83047.0,0.45998391]
[1743880287064,0.0843206,83048.0,83047.0,0.45998391]
[1743880288961,0.1279206,83048.0,83047.0,0.45998391]
[1743880292763,0.1711206,83048.0,83047.0,0.45998391]
[1743880295074,0.1711206,83048.0,83047.0,0.41648391]
[1743880296565,0.1711206,83048.0,83047.0,0.29126231]
[1743880297978,0.1711206,83048.0,83047.0,0.24116]
[1743880298171,0.3711206,83048.0,83047.0,0.24116]
[1743880314681,0.3711206,83048.0,83047.0,0.24]
[1743880315085,0.3717606,83048.0,83047.0,0.24]
[1743880317273,0.3717606,83048.0,83047.0,0.29016173]
[1743880317472,0.3285606,83048.0,83047.0,0.29132173]
[1743880317675,0.1285606,83048.0,83047.0,0.29132173]
[1743880317880,0.1285606,83048.0,83047.0,0.37262173]
[1743880321685,0.1285606,83048.0,83047.0,0.45694333]
[1743880321686,0.0849606,83048.0,83047.0,0.45694333]
[1743880323471,0.0849606,83048.0,83047.0,0.37262173]
[1743880324787,0.1280606,83048.0,83047.0,0.37262173]
[1743880325989,0.1280606,83048.0,83047.0,0.45694333]
[1743880326788,0.1280606,83048.0,83047.0,0.37262173]
[1743880329192,0.1693606,83048.0,83047.0,0.37262173]
[1743880335897,0.1693606,83048.0,83047.0,0.45694333]
[1743880336091,0.1693606,83048.0,83047.0,0.37262173]
[1743880336495,0.1693606,83048.0,83047.0,0.45694333]
[1743880337601,0.1693606,83048.0,83047.0,0.37262173]
[1743880338604,0.1693606,83048.0,83047.0,0.45694333]
[1743880339603,0.1280606,83048.0,83047.0,0.45694333]
[1743880341300,0.1672606,83048.0,83047.0,0.37262173]
[1743880341801,0.1672606,83048.0,83047.0,0.45694333]
[1743880343005,0.1672606,83048.0,83047.0,0.41684333]
[1743880345006,0.1280606,83048.0,83047.0,0.45534333]
[1743880345191,0.1667606,83048.0,83047.0,0.45534333]
[1743880358112,0.1667606,83048.0,83047.0,0.41684333]
[1743880358319,0.3111107,83048.0,83047.0,0.41684333]
[1743880366718,0.16603784,83056.0,83052.0,0.0421578]
[1743880366927,0.16603784,83056.0,83055.0,0.4451135]
[1743880367116,0.16603784,83056.0,83055.0,0.72663523]
[1743880367318,0.16603784,83056.0,83055.0,0.80413523]
[1743880367717,1e-08,83056.0,83055.0,0.80413523]
[1743880370927,0.0423,83059.0,83058.0,0.0843104]
[1743880371129,0.0423,83059.0,83058.0,0.40583213]
[1743880371330,0.0423,83059.0,83058.0,0.48443213]
[1743880374326,0.0423,83059.0,83058.0,0.70052998]
[1743880376231,0.10828148,83068.0,83067.0,0.0843013]
[1743880376437,0.10828148,83068.0,83067.0,0.7151013]
[1743880376735,0.10828148,83068.0,83067.0,0.88216303]
[1743880377733,0.11028148,83068.0,83067.0,0.88216303]
[1743880378848,0.004,83068.0,83067.0,0.88216303]
[1743880379747,0.0837,83068.0,83067.0,0.88216303]
[1743880381742,0.0837,83068.0,83067.0,0.88352303]
[1743880382748,0.0837,83068.0,83067.0,0.80512303]
[1743880383752,0.0837,83068.0,83067.0,0.7549613]
[1743880390956,0.0797,83068.0,83067.0,0.7549613]
[1743880392156,0.1640003,83068.0,83067.0,0.7549613]
[1743880393863,0.1640003,83068.0,83067.0,0.80503011]
[1743880396060,0.1640003,83068.0,83067.0,0.44423011]
[1743880398060,0.0797,83068.0,83067.0,0.44423011]
[1743880399164,0.0797,83068.0,83067.0,0.48643011]
[1743880399360,1.0,83075.0,83074.0,0.0842942]
[1743880399550,0.1215,83084.0,83074.0,0.65086881]
[1743880399755,0.1215,83084.0,83083.0,0.0842851]
[1743880399954,0.1215,83084.0,83083.0,0.37571391]
[1743880400151,0.0801,83084.0,83083.0,0.42689349]
[1743880400457,0.2156252,83095.0,83091.0,0.0842769]
[1743880400659,0.0393,83094.0,83091.0,0.76658571]
[1743880400862,0.0393,83094.0,83093.0,0.0842749]
[1743880401163,0.0393,83094.0,83093.0,0.40434371]
[1743880401365,0.0393,83094.0,83093.0,0.49020371]
[1743880402350,0.0413,83094.0,83093.0,0.49020371]
[1743880403165,0.0393,83094.0,83093.0,0.49020371]
[1743880403767,0.0821,83094.0,83093.0,0.49020371]
[1743880403979,0.01113935,83094.0,83093.0,0.49020371]
[1743880404263,0.00813935,83094.0,83093.0,0.49020371]
[1743880404965,0.09241325,83094.0,83093.0,0.4401349]
[1743880405364,0.09241325,83094.0,83093.0,0.45679825]
[1743880406152,0.09241325,83094.0,83093.0,0.28802335]
[1743880407261,0.13231325,83094.0,83093.0,0.28802335]
[1743880408364,0.13231325,83094.0,83093.0,0.32722335]
[1743880411160,0.13231325,83094.0,83093.0,0.41149825]
[1743880411960,0.13231325,83094.0,83093.0,0.32722335]
[1743880413965,0.13231325,83094.0,83093.0,0.28802335]
[1743880414266,0.33231325,83094.0,83093.0,0.28802335]
[1743880416467,0.69311325,83094.0,83093.0,0.28802335]
[1743880418968,0.49311325,83094.0,83093.0,0.28802335]
[1743880422480,0.13231325,83094.0,83093.0,0.28802335]
[1743880422773,0.49311325,83094.0,83093.0,0.28802335]
[1743880422974,0.13231325,83094.0,83093.0,0.32862335]
[1743880423773,0.49311325,83094.0,83093.0,0.32862335]
[1743880426170,0.13231325,83094.0,83093.0,0.32862335]
[1743880429283,0.1241739,83094.0,83093.0,0.32862335]
[1743880429467,0.3608,83095.0,83094.0,0.0842739]
[1743880429670,0.4450729,83095.0,83094.0,0.4042739]
[1743880430270,0.4450729,83095.0,83094.0,0.32]
[1743880430483,0.4450729,83095.0,83094.0,0.4028739]
[1743880430871,0.4450729,83095.0,83094.0,0.4042339]
[1743880431272,0.4450729,83095.0,83094.0,0.31996]
[1743880431472,0.4450729,83095.0,83094.0,0.37005412]
[1743880431672,0.4450729,83095.0,83094.0,0.45432802]
[1743880431873,0.4450729,83095.0,83094.0,0.37005412]
[1743880432779,0.4450729,83095.0,83094.0,0.45432802]
[1743880432780,0.0842729,83095.0,83094.0,0.45432802]
[1743880433476,0.0842729,83095.0,83094.0,0.37005412]
[1743880433677,0.0842729,83095.0,83094.0,0.45432802]
[1743880434783,0.0842729,83095.0,83094.0,0.6698348]
[1743880435184,0.0842729,83095.0,83094.0,0.5855609]
[1743880435489,0.1655729,83095.0,83094.0,0.5855609]
[1743880435786,0.1655729,83095.0,83094.0,0.5460609]
[1743880435975,0.2076729,83095.0,83094.0,0.49596678]
[1743880436479,0.2076729,83095.0,83094.0,0.53446678]
[1743880437279,0.2086729,83095.0,83094.0,0.53446678]
[1743880437882,0.2076729,83095.0,83094.0,0.53446678]
[1743880438990,0.5684729,83095.0,83094.0,0.53446678]
[1743880439179,0.5684729,83095.0,83094.0,0.31896]
[1743880439381,0.5684729,83095.0,83094.0,0.3176]
[1743880439687,0.2086729,83095.0,83094.0,0.3176]
[1743880439988,0.5694729,83095.0,83094.0,0.31896]
[1743880440188,0.5694729,83095.0,83094.0,0.3176]
[1743880440390,0.5684729,83095.0,83094.0,0.3176]
[1743880440889,0.5684729,83095.0,83094.0,0.24]
[1743880441079,0.08428,83088.0,83087.0,0.21550678]
[1743880441282,0.44508,83088.0,83087.0,0.27686678]
[1743880441482,0.48688,83088.0,83087.0,0.20241988]
[1743880441687,0.0842861,83082.0,83081.0,0.09719075]
[1743880441989,0.0842861,83082.0,83081.0,0.13719075]
[1743880442183,0.2087861,83082.0,83081.0,0.13719075]
[1743880442787,0.4087861,83082.0,83081.0,0.04]
[1743880443182,0.4087861,83082.0,83081.0,0.0798]
[1743880443584,0.4097861,83082.0,83081.0,0.0798]
[1743880445093,0.4105461,83082.0,83081.0,0.0798]
[1743880445795,0.4105461,83082.0,83081.0,0.1088]
[1743880446996,0.4105461,83082.0,83081.0,0.0148]
[1743880448093,0.4105461,83082.0,83081.0,0.0128]
[1743880448984,0.7713461,83082.0,83081.0,0.0128]
[1743880450083,0.7713461,83082.0,83081.0,0.0098]
[1743880450290,0.7713461,83082.0,83081.0,0.0078]
[1743880451495,0.7713461,83082.0,83081.0,0.0472]
[1743880453193,0.7713461,83082.0,83081.0,0.0857]
[1743880454999,0.7713461,83082.0,83081.0,0.0817]
[1743880455496,0.7713461,83082.0,83081.0,0.0038]
[1743880455697,0.0842901,83078.0,83076.0,0.00180544]
[1743880455898,0.1666912,83077.0,83076.0,4e-08]
[1743880456101,0.0843054,83063.0,83062.0,0.0414]
[1743880456302,0.4457454,83063.0,83062.0,0.0914]
[1743880456498,0.5641454,83063.0,83062.0,0.0914]
[1743880457293,0.7641454,83063.0,83062.0,0.0914]
[1743880459305,0.7641454,83063.0,83062.0,0.10693682]
[1743880459906,0.7641454,83063.0,83062.0,0.03293682]
[1743880460506,0.0843186,83050.0,83049.0,0.07282324]
[1743880460707,0.0843216,83047.0,83046.0,0.0843217]
[1743880460898,0.08528161,83047.0,83046.0,0.37526179]
[1743880461209,0.08528161,83047.0,83046.0,0.29094009]
[1743880461706,0.12508161,83047.0,83046.0,0.29094009]
[1743880462611,0.12508161,83047.0,83046.0,0.30619605]
[1743880463608,0.08528161,83047.0,83046.0,0.30619605]
[1743880464111,0.08528161,83047.0,83046.0,0.25621596]
[1743880464410,0.0843216,83047.0,83046.0,0.25621596]
[1743880464706,0.08528161,83047.0,83046.0,0.25621596]
[1743880468598,0.08528161,83047.0,83046.0,0.33931596]
[1743880469111,0.08528161,83047.0,83046.0,0.38929339]
[1743880469300,0.08528161,83047.0,83046.0,0.47361599]
[1743880470512,0.08528161,83047.0,83046.0,0.38929339]
[1743880470710,0.12768161,83047.0,83046.0,0.47361599]
[1743880471018,0.12768161,83047.0,83046.0,0.25621596]
[1743880471311,0.20688161,83047.0,83046.0,0.25621596]
[1743880472099,0.40688161,83047.0,83046.0,0.25621596]
[1743880473207,0.36628161,83047.0,83046.0,0.25621596]
[1743880473511,0.32768161,83047.0,83046.0,0.25621596]
[1743880473712,0.32768161,83047.0,83046.0,0.37901596]
[1743880473910,0.32768161,83047.0,83046.0,0.46333856]
[1743880474108,0.32768161,83047.0,83046.0,0.37901596]
[1743880474414,0.12768161,83047.0,83046.0,0.37901596]
[1743880476918,0.12768161,83047.0,83046.0,0.46333856]
[1743880481910,0.12768161,83047.0,83046.0,0.51337491]
[1743880482216,0.12768161,83047.0,83046.0,0.46333856]
[1743880484814,0.12768161,83047.0,83046.0,0.51339226]
[1743880488014,0.12768161,83047.0,83046.0,0.47209226]
[1743880495125,0.12768161,83047.0,83046.0,0.39059226]
[1743880495419,0.16668161,83047.0,83046.0,0.39059226]
[1743880500318,0.04336001,83047.0,83046.0,0.39059226]
[1743880500523,0.04336001,83047.0,83046.0,0.46999226]
[1743880502122,0.9405536,83050.0,83049.0,0.0843196]
[1743880502323,0.9405536,83050.0,83049.0,0.3857333]
[1743880502522,0.9405536,83050.0,83049.0,0.4638333]
[1743880503524,0.91571303,83050.0,83049.0,0.8246333]
[1743880503724,0.18201229,83050.0,83049.0,0.8246333]
[1743880504030,0.17652326,83050.0,83049.0,0.8246333]
[1743880505529,0.14652326,83050.0,83049.0,0.8246333]
[1743880506932,0.0385,83055.0,83054.0,0.0843145]
[1743880507134,0.0385,83055.0,83054.0,0.3455545]
[1743880507335,0.0385,83055.0,83054.0,0.5108082]
[1743880511332,0.1228135,83055.0,83054.0,0.3112937]
[1743880511924,0.1627135,83055.0,83054.0,0.3112937]
[1743880512941,0.5235135,83055.0,83054.0,0.1922937]
[1743880513237,0.5235135,83055.0,83054.0,0.14224]
[1743880513827,0.7235135,83055.0,83054.0,0.1923413]
[1743880514034,0.7235135,83055.0,83054.0,0.14224]
[1743880515140,0.5235135,83055.0,83054.0,0.14224]
[1743880516434,0.0843216,83047.0,83046.0,0.01525596]
[1743880516630,0.4451216,83047.0,83046.0,0.12971184]
[1743880516840,0.6718216,83047.0,83046.0,0.12971184]
[1743880517031,0.0843267,83042.0,83041.0,1e-08]
[1743880517231,0.0843297,83039.0,83038.0,0.01780493]
[1743880517432,0.0843297,83039.0,83038.0,0.1]
[1743880517627,0.0843307,83038.0,83037.0,1e-08]
[1743880518032,0.2343307,83038.0,83037.0,1e-08]
[1743880519642,0.2843307,83038.0,83037.0,1e-08]
[1743880520043,0.2850507,83038.0,83037.0,1e-08]
[1743880520243,0.0843348,83034.0,83033.0,0.00011756]
[1743880520542,0.4458148,83034.0,83033.0,0.00095756]
[1743880520744,0.4935148,83034.0,83033.0,0.00011756]
[1743880521242,0.0843389,83030.0,83029.0,0.00018063]
[1743880521437,0.0849789,83030.0,83029.0,0.06018063]
[1743880521637,0.1326789,83030.0,83029.0,0.06018063]
[1743880522243,0.13279404,83030.0,83029.0,0.06018063]
[1743880523039,0.33279404,83030.0,83029.0,0.06018063]
[1743880525237,0.32229404,83030.0,83029.0,0.0691491]
[1743880525537,0.12229404,83030.0,83029.0,0.0691491]
[1743880525738,0.12229404,83030.0,83029.0,0.0699891]
[1743880525943,0.12229404,83030.0,83029.0,0.1102891]
[1743880526946,0.13279404,83030.0,83029.0,0.1102891]
[1743880530647,0.12229404,83030.0,83029.0,0.1488891]
[1743880531146,0.08509404,83030.0,83029.0,0.1488891]
[1743880533448,0.08509404,83030.0,83029.0,0.233229]
[1743880533844,0.08509404,83030.0,83029.0,0.1488891]
[1743880538446,0.00075514,83030.0,83029.0,0.1488891]
[1743880538646,0.00075514,83030.0,83029.0,0.233229]
[1743880538945,0.08509404,83030.0,83029.0,0.233229]
[1743880539251,0.08509404,83030.0,83029.0,0.1488891]
[1743880539750,0.08509404,83030.0,83029.0,0.233229]
[1743880544849,0.00075514,83030.0,83029.0,0.233229]
[1743880546444,0.00075514,83030.0,83029.0,0.28284248]
[1743880551358,0.08509404,83030.0,83029.0,0.28284248]
[1743880551759,0.19297408,83030.0,83029.0,0.28284248]
[1743880555661,0.08509404,83030.0,83029.0,0.28284248]
[1743880562158,0.08509404,83030.0,83029.0,0.19850258]
[1743880562364,0.08509404,83030.0,83029.0,0.28284248]
[1743880568873,0.00075514,83030.0,83029.0,0.28284248]
[1743880569460,0.08509404,83030.0,83029.0,0.28284248]
[1743880569665,0.00075514,83030.0,83029.0,0.28284248]
[1743880574979,0.00011514,83030.0,83029.0,0.28284248]
[1743880580278,0.00099514,83030.0,83029.0,0.28284248]
[1743880581876,0.00095514,83030.0,83029.0,0.28284248]
[1743880588090,0.08529404,83030.0,83029.0,0.28284248]
[1743880588981,0.12789404,83030.0,83029.0,0.28284248]
[1743880589181,0.14439404,83030.0,83029.0,0.28284248]
[1743880590486,0.12789404,83030.0,83029.0,0.28284248]
[1743880591187,0.08529404,83030.0,83029.0,0.28284248]
[1743880595086,0.00095514,83030.0,83029.0,0.28284248]
[1743880603809,0.08529404,83030.0,83029.0,0.28284248]
[1743880604911,0.00095514,83030.0,83029.0,0.28284248]
[1743880605212,0.08529404,83030.0,83029.0,0.28284248]
[1743880615018,0.00095514,83030.0,83029.0,0.28284248]
[1743880615317,0.00011514,83030.0,83029.0,0.28284248]
[1743880615518,0.12783694,83034.0,83033.0,0.0843358]
[1743880615719,0.16937479,83042.0,83041.0,0.0843277]
[1743880615918,0.16937479,83042.0,83041.0,0.38394118]
[1743880616118,0.16937479,83042.0,83041.0,0.50424118]
[1743880616519,0.0843218,83047.0,83046.0,0.0843226]
[1743880616720,0.0843218,83047.0,83046.0,0.38393608]
[1743880618315,0.0863218,83047.0,83046.0,0.38393608]
[1743880618920,0.0873218,83047.0,83046.0,0.38393608]
[1743880620322,0.0879618,83047.0,83046.0,0.38477608]
[1743880623318,0.1311618,83047.0,83046.0,0.38477608]
[1743880624417,0.1488618,83047.0,83046.0,0.38477608]
[1743880626323,0.1488618,83047.0,83046.0,0.3351626]
[1743880626824,0.1311618,83047.0,83046.0,0.3351626]
[1743880627527,0.1311618,83047.0,83046.0,0.3780626]
[1743880628824,0.1311618,83047.0,83046.0,0.29374]
[1743880629425,0.1488618,83047.0,83046.0,0.29374]
[1743880629726,0.1311618,83047.0,83046.0,0.29374]
[1743880632327,0.1301618,83047.0,83046.0,0.29374]
[1743880633922,0.1281618,83047.0,83046.0,0.29374]
[1743880636724,0.0849618,83047.0,83046.0,0.29374]
[1743880640435,0.0849618,83047.0,83046.0,0.34344421]
[1743880644134,0.0849618,83047.0,83046.0,0.29374]
[1743880644332,0.0843267,83042.0,83041.0,0.041]
[1743880644540,0.4451267,83042.0,83041.0,0.161]
[1743880644835,0.5136267,83042.0,83041.0,0.161]
[1743880645134,0.5142667,83042.0,83041.0,0.161]
[1743880647025,0.5142667,83042.0,83041.0,0.16184]
[1743880655934,0.4457667,83042.0,83041.0,0.16184]
[1743880656131,0.36144,83042.0,83041.0,0.16184]
[1743880656332,0.0421611,83047.0,83045.0,0.1264843]
[1743880656635,0.0421611,83047.0,83046.0,0.1720226]
[1743880656832,0.0421611,83047.0,83046.0,0.37841258]
[1743880657142,0.0421611,83047.0,83046.0,0.28614]
[1743880657326,0.1319611,83047.0,83046.0,0.2851]
[1743880657731,0.3319611,83047.0,83046.0,0.2851]
[1743880660037,0.3326411,83047.0,83046.0,0.2851]
[1743880662341,0.3326411,83047.0,83046.0,0.2811]
[1743880664035,0.3326411,83047.0,83046.0,0.2211]
[1743880664333,0.3326411,83047.0,83046.0,0.2181]
[1743880664733,0.6934411,83047.0,83046.0,0.2181]
[1743880665538,0.6934411,83047.0,83046.0,0.2141]
[1743880666542,0.6934411,83047.0,83046.0,0.1461]
[1743880666842,0.6934411,83047.0,83046.0,0.1241]
[1743880667852,0.6934411,83047.0,83046.0,0.1191]
[1743880668435,0.6934411,83047.0,83046.0,0.1624]
[1743880669634,0.6934411,83047.0,83046.0,0.1524]
[1743880670645,0.6934411,83047.0,83046.0,0.1494]
[1743880672242,0.6934411,83047.0,83046.0,0.1284]
[1743880675161,0.75199196,83047.0,83046.0,0.1284]
[1743880680055,0.70609196,83047.0,83046.0,0.1284]
[1743880681153,0.66219196,83047.0,83046.0,0.1284]
[1743880682556,0.46219196,83047.0,83046.0,0.1284]
[1743880684054,0.50699196,83047.0,83046.0,0.1284]
[1743880685448,0.70699196,83047.0,83046.0,0.1284]
[1743880692960,0.75109196,83047.0,83046.0,0.1284]
[1743880694272,0.75109196,83047.0,83046.0,0.0544]
[1743880695362,0.75109196,83047.0,83046.0,0.0434]
[1743880696560,0.75109196,83047.0,83046.0,0.0414]
[1743880696763,0.75109196,83047.0,83046.0,0.0914]
[1743880696970,0.0843267,83042.0,83041.0,0.041]
[1743880697161,0.0843267,83042.0,83041.0,0.34075929]
[1743880697367,0.0843267,83042.0,83041.0,0.29204]
[1743880697875,0.1264267,83042.0,83041.0,0.29204]
[1743880698470,0.1264267,83042.0,83041.0,0.34179759]
[1743880704462,0.0843267,83042.0,83041.0,0.34179759]
[1743880705675,0.0843267,83042.0,83041.0,0.38396139]
[1743880705865,0.0843267,83042.0,83041.0,0.46806139]
[1743880708177,0.0843267,83042.0,83041.0,0.51022529]
[1743880710675,0.0843267,83042.0,83041.0,0.42589759]
[1743880710877,0.0843267,83042.0,83041.0,0.51022529]
[1743880711577,0.0843267,83042.0,83041.0,0.42589759]
[1743880712279,0.0843267,83042.0,83041.0,0.51022529]
[1743880714479,0.0843267,83042.0,83041.0,0.52684629]
[1743880719684,0.0843267,83042.0,83041.0,0.44251859]
[1743880720186,0.1276267,83042.0,83041.0,0.44251859]
[1743880720385,0.1276267,83042.0,83041.0,0.42589759]
[1743880721485,0.1276267,83042.0,83041.0,0.44252697]
[1743880721883,0.4884267,83042.0,83041.0,0.44252697]
[1743880722783,0.4884267,83042.0,83041.0,0.42589759]
[1743880724073,0.4884267,83042.0,83041.0,0.44253098]
[1743880725983,0.4884267,83042.0,83041.0,0.52685868]
[1743880726183,0.4884267,83042.0,83041.0,0.44253098]
[1743880728082,0.4884267,83042.0,83041.0,0.35933098]
[1743880728291,0.5305267,83042.0,83041.0,0.31743098]
[1743880728597,0.5305267,83042.0,83041.0,0.26767339]
[1743880739887,0.5305267,83042.0,83041.0,0.19645339]
[1743880740187,0.0843348,83034.0,83033.0,0.00240868]
[1743880740386,0.4451348,83034.0,83033.0,0.19321459]
[1743880740601,0.5311348,83034.0,83033.0,0.19321459]
[1743880740901,0.7311348,83034.0,83033.0,0.14348868]
[1743880741103,0.7311348,83034.0,83033.0,0.14240868]
[1743880745003,0.7317748,83034.0,83033.0,0.14240868]
[1743880747107,0.87609639,83034.0,83033.0,0.14240868]
[1743880749298,0.51529639,83034.0,83033.0,0.14240868]
[1743880749503,0.87609639,83034.0,83033.0,0.14344868]
[1743880749811,0.51529639,83034.0,83033.0,0.14240868]
[1743880750007,0.87609639,83034.0,83033.0,0.14348868]
[1743880750202,0.87609639,83034.0,83033.0,0.14240868]
[1743880751311,0.7317748,83034.0,83033.0,0.14240868]
[1743880752104,0.7317748,83034.0,83033.0,0.15908382]
[1743880752414,0.3709748,83034.0,83033.0,0.15908382]
[1743880752711,0.7317748,83034.0,83033.0,0.16012382]
[1743880753012,0.3709748,83034.0,83033.0,0.15908382]
[1743880753309,0.7317748,83034.0,83033.0,0.16012382]
[1743880753513,0.7317748,83034.0,83033.0,0.15908382]
[1743880753917,0.3709748,83034.0,83033.0,0.15908382]
[1743880754116,0.7317748,83034.0,83033.0,0.16016382]
[1743880754315,0.7317748,83034.0,83033.0,0.15908382]
[1743880755505,0.87609639,83034.0,83033.0,0.15908382]
[1743880757112,0.51529639,83034.0,83033.0,0.15908382]
[1743880757319,0.87609639,83034.0,83033.0,0.16016382]
[1743880757507,0.87609639,83034.0,83033.0,0.15908382]
[1743880758406,0.7317748,83034.0,83033.0,0.15908382]
[1743880759814,0.3709748,83034.0,83033.0,0.15908382]
[1743880760019,0.2849748,83034.0,83033.0,0.29419776]